bitfinex/quotes_BTCUSD_20240727
["timestamp","ask_amount","ask_price","bid_price","bid_amount"]
[1722051531192,0.00829,68057.0,68056.0,2.27682975]
[1722051531391,0.00829,68057.0,68056.0,2.11756922]
[1722051531597,0.00829,68057.0,68056.0,2.13156922]
[1722051532220,0.14469,68057.0,68056.0,1.81469422]
[1722051532806,0.14469,68057.0,68056.0,1.80069212]
[1722051533013,0.14469,68057.0,68056.0,1.81469212]
[1722051533216,0.14469,68057.0,68056.0,1.82869212]
[1722051533495,0.16774256,68057.0,68056.0,1.81469212]
[1722051533647,0.16774256,68057.0,68056.0,1.80069212]
[1722051533851,0.14469,68057.0,68056.0,1.82869212]
[1722051534150,0.19469,68057.0,68056.0,1.42890712]
[1722051534323,0.14469,68057.0,68056.0,1.41490712]
[1722051534641,0.14469,68057.0,68056.0,1.40090712]
[1722051534846,0.14469,68057.0,68056.0,1.41490712]
[1722051535187,0.19469,68057.0,68056.0,0.82715712]
[1722051535385,0.19469,68057.0,68056.0,1.12103212]
[1722051535831,0.19469,68057.0,68056.0,0.68022012]
[1722051535988,0.19669,68057.0,68056.0,0.42996055]
[1722051536364,0.44669,68057.0,68056.0,0.30788]
[1722051536541,0.44669,68057.0,68056.0,0.32188]
[1722051537088,0.46974505,68057.0,68056.0,0.32188]
[1722051537302,0.46974505,68057.0,68056.0,0.29388]
[1722051537729,0.46974505,68057.0,68056.0,0.32188]
[1722051538929,0.44669,68057.0,68056.0,0.32188]
[1722051539580,0.4906547,68057.0,68056.0,0.32188]
[1722051541916,0.49065661,68057.0,68056.0,0.32188]
[1722051542131,0.51371184,68057.0,68056.0,0.32188]
[1722051542472,0.49065661,68057.0,68056.0,0.32188]
[1722051543960,0.44669,68057.0,68056.0,0.32188]
[1722051544324,0.49065711,68057.0,68056.0,0.32188]
[1722051544540,0.49065651,68057.0,68056.0,0.32188]
[1722051545265,0.49065614,68057.0,68056.0,0.32188]
[1722051545669,0.51371149,68057.0,68056.0,0.32188]
[1722051545872,0.61668035,68057.0,68056.0,0.32188]
[1722051546075,0.46974535,68057.0,68056.0,0.32188]
[1722051547832,0.44669,68057.0,68056.0,0.32188]
[1722051548763,0.49065266,68057.0,68056.0,0.32188]
[1722051550511,0.48865266,68057.0,68056.0,0.32188]
[1722051551336,0.51170793,68057.0,68056.0,0.32188]
[1722051551537,0.48865266,68057.0,68056.0,0.32188]
[1722051551895,0.44669,68057.0,68056.0,0.32188]
[1722051552101,0.49065245,68057.0,68056.0,0.32188]
[1722051554931,0.51370772,68057.0,68056.0,0.32188]
[1722051555137,0.49065245,68057.0,68056.0,0.32188]
[1722051555338,0.49065254,68057.0,68056.0,0.32188]
[1722051558786,0.49064957,68057.0,68056.0,0.32188]
[1722051559347,0.48864957,68057.0,68056.0,0.32188]
[1722051560105,0.42864957,68057.0,68056.0,0.32188]
[1722051560311,0.38469,68057.0,68056.0,0.32188]
[1722051560645,0.13469,68057.0,68056.0,0.32188]
[1722051560845,0.33469,68057.0,68056.0,0.32188]
[1722051561671,0.38469,68057.0,68056.0,0.32188]
[1722051562085,0.38669,68057.0,68056.0,0.32188]
[1722051562865,0.40974531,68057.0,68056.0,0.32188]
[1722051563178,0.38669,68057.0,68056.0,0.32188]
[1722051565279,0.38469,68057.0,68056.0,0.32188]
[1722051565529,0.40876414,68057.0,68056.0,0.32188]
[1722051565734,0.08236414,68057.0,68056.0,0.32188]
[1722051566124,0.05829,68057.0,68056.0,0.32188]
[1722051566445,0.08134518,68057.0,68056.0,0.44398458]
[1722051566591,0.03134518,68057.0,68056.0,0.44398458]
[1722051566786,0.08134518,68057.0,68056.0,0.44398458]
[1722051568602,1.36395197,68057.0,68056.0,0.44398458]
[1722051568883,1.36395197,68057.0,68056.0,0.32188]
[1722051568884,1.09620018,68057.0,68056.0,0.32188]
[1722051569083,1.14738599,68057.0,68056.0,0.32188]
[1722051569334,1.44125699,68057.0,68056.0,0.32188]
[1722051569537,1.44125699,68057.0,68056.0,0.30788]
[1722051569749,0.85351499,68057.0,68056.0,0.30788]
[1722051569960,0.6314502,68057.0,68056.0,0.32188]
[1722051570169,0.7019852,68057.0,68056.0,0.32188]
[1722051570297,0.67893002,68057.0,68056.0,0.30788]
[1722051570729,0.67893002,68057.0,68056.0,0.32188]
[1722051570889,0.62774421,68057.0,68056.0,0.32188]
[1722051571289,0.67996297,68057.0,68056.0,0.32188]
[1722051571511,0.92161521,68057.0,68056.0,0.32188]
[1722051572932,1.7053121,68057.0,68056.0,0.32188]
[1722051573155,2.15138245,68057.0,68056.0,0.32188]
[1722051573703,2.174442,68057.0,68056.0,0.32188]
[1722051573917,2.05488711,68057.0,68056.0,0.30788]
[1722051574267,2.03182756,68057.0,68056.0,0.30788]
[1722051574435,2.03282756,68057.0,68056.0,0.30788]
[1722051574663,2.17986643,68057.0,68056.0,0.30788]
[1722051574840,2.18086643,68057.0,68056.0,0.29388]
[1722051575183,2.18086643,68057.0,68056.0,0.29488]
[1722051575184,2.10646643,68057.0,68056.0,0.29488]
[1722051575389,2.10646288,68057.0,68056.0,0.29488]
[1722051575618,1.97948328,68057.0,68056.0,0.29388]
[1722051576066,1.98148328,68057.0,68056.0,0.29488]
[1722051576364,1.99175101,68057.0,68056.0,0.29488]
[1722051577344,2.01481101,68057.0,68056.0,0.29488]
[1722051578786,1.96261166,68057.0,68056.0,0.29488]
[1722051579001,2.00737051,68057.0,68056.0,0.29488]
[1722051579152,1.98431051,68057.0,68056.0,0.29488]
[1722051579539,2.04321751,68057.0,68056.0,0.29488]
[1722051581209,1.74934651,68057.0,68056.0,0.29488]
[1722051582380,1.74734651,68057.0,68056.0,0.29388]
[1722051582620,1.76940668,68057.0,68056.0,0.29388]
[1722051582776,1.06060451,68057.0,68056.0,0.29388]
[1722051582985,1.01684566,68057.0,68056.0,0.29388]
[1722051583202,1.31071666,68057.0,68056.0,0.29388]
[1722051583816,1.60458766,68057.0,68056.0,0.29388]
[1722051584186,1.31071666,68057.0,68056.0,0.29388]
[1722051585153,2.56820355,68057.0,68056.0,0.29388]
[1722051585357,2.56820355,68057.0,68056.0,0.06669831]
[1722051585358,2.59120355,68057.0,68056.0,0.06669831]
[1722051585554,2.59149903,68057.0,68056.0,0.06669831]
[1722051585827,2.90842949,68057.0,68056.0,0.06669831]
[1722051586283,2.88537003,68057.0,68056.0,0.06669831]
[1722051586666,2.59149903,68057.0,68056.0,0.06669831]
[1722051587275,2.88537003,68057.0,68056.0,0.06669831]
[1722051587482,2.59149903,68057.0,68056.0,0.06669831]
[1722051588205,2.34149903,68057.0,68056.0,0.06669831]
[1722051588563,2.48969302,68057.0,68056.0,0.06669831]
[1722051589010,2.29684802,68057.0,68056.0,0.06669831]
[1722051589206,2.34198097,68057.0,68056.0,0.06669831]
[1722051589406,2.3650436,68057.0,68056.0,0.06669831]
[1722051590088,2.51275674,68057.0,68056.0,0.06669831]
[1722051590528,2.3650436,68057.0,68056.0,0.06669831]
[1722051590973,2.6150436,68057.0,68056.0,0.06669831]
[1722051591146,2.76275674,68057.0,68056.0,0.06669831]
[1722051591541,2.76531892,68057.0,68056.0,0.06669831]
[1722051591958,1.624554,68050.0,68049.0,0.000924]
[1722051592162,2.28513708,68050.0,68049.0,0.000924]
[1722051592375,2.15371622,68050.0,68049.0,0.000924]
[1722051592588,2.28502254,68050.0,68049.0,0.000924]
[1722051592787,2.3080865,68050.0,68049.0,0.000924]
[1722051593283,2.3100865,68050.0,68049.0,0.000924]
[1722051593452,2.2600865,68050.0,68049.0,0.000924]
[1722051593625,2.17978018,68050.0,68049.0,0.000924]
[1722051594233,2.47368118,68050.0,68049.0,0.000924]
[1722051594432,1.768948,68040.0,68039.0,0.000913]
[1722051594639,2.02878043,68040.0,68039.0,0.000913]
[1722051594948,2.17878043,68040.0,68039.0,0.000913]
[1722051595106,2.3331026,68040.0,68039.0,0.000913]
[1722051595313,2.35210695,68040.0,68039.0,0.000913]
[1722051595510,2.35189942,68040.0,68039.0,0.000913]
[1722051595779,2.69758385,68040.0,68039.0,0.000913]
[1722051595952,2.72058385,68040.0,68039.0,0.000913]
[1722051596271,2.71858385,68040.0,68039.0,0.000913]
[1722051596449,2.72458385,68040.0,68039.0,0.000913]
[1722051596633,2.87484342,68040.0,68039.0,0.000913]
[1722051596857,2.87884342,68040.0,68039.0,0.000913]
[1722051597163,2.87484342,68040.0,68039.0,0.000913]
[1722051597331,2.87484342,68040.0,68039.0,0.001913]
[1722051597532,2.87384342,68040.0,68039.0,0.001913]
[1722051598215,2.69330758,68040.0,68039.0,0.001913]
[1722051598428,2.54006358,68040.0,68039.0,0.001913]
[1722051598610,2.67110835,68040.0,68039.0,0.001913]
[1722051598917,2.49525789,68040.0,68039.0,0.001913]
[1722051599112,2.68237865,68040.0,68039.0,0.002913]
[1722051599466,1.574865,68034.0,68033.0,0.000913]
[1722051599668,2.02443422,68034.0,68033.0,0.000913]
[1722051599909,2.09033422,68034.0,68033.0,0.000913]
[1722051600510,2.14033422,68034.0,68033.0,0.000913]
[1722051600856,2.0361582,68034.0,68033.0,0.000913]
[1722051601063,2.19041777,68034.0,68033.0,0.000913]
[1722051601236,2.39952637,68034.0,68033.0,0.000913]
[1722051601452,2.34135168,68034.0,68033.0,0.000913]
[1722051602470,2.45043246,68034.0,68033.0,0.000913]
[1722051602603,2.47343246,68034.0,68033.0,0.000913]
[1722051603075,2.76740246,68034.0,68033.0,0.000913]
[1722051603489,2.65832168,68034.0,68033.0,0.000913]
[1722051603641,2.90832168,68034.0,68033.0,0.000913]
[1722051604453,2.99556345,68034.0,68033.0,0.000913]
[1722051604661,2.99532347,68034.0,68033.0,0.000913]
[1722051604886,1.331182,68015.0,68014.0,0.062]
[1722051605093,1.331182,68015.0,68012.0,0.0809]
[1722051605094,0.491091,68013.0,68012.0,0.0809]
[1722051605315,0.743097,68012.0,68005.0,0.062]
[1722051605488,1.06128121,68012.0,68005.0,0.062]
[1722051605668,1.35534621,68012.0,68005.0,0.062]
[1722051605868,1.37841987,68012.0,68005.0,0.062]
[1722051607526,1.53119813,68012.0,68005.0,0.062]
[1722051608612,1.53119813,68012.0,68011.0,0.005924]
[1722051609114,1.53119813,68012.0,68011.0,0.008924]
[1722051609760,1.23713313,68012.0,68011.0,0.089824]
[1722051609964,1.23713313,68012.0,68011.0,0.151824]
[1722051610735,0.94306813,68012.0,68011.0,0.151824]
[1722051611102,0.91999447,68012.0,68011.0,0.151824]
[1722051611420,0.86999447,68012.0,68011.0,0.151824]
[1722051611633,0.91999447,68012.0,68011.0,0.151824]
[1722051612276,0.47889747,68012.0,68011.0,0.151824]
[1722051612698,0.62592947,68012.0,68011.0,0.151824]
[1722051613357,0.47889747,68012.0,68011.0,0.151824]
[1722051615754,0.52503865,68012.0,68011.0,0.151824]
[1722051617084,0.52503865,68012.0,68011.0,0.148824]
[1722051617704,0.52503865,68012.0,68011.0,0.143824]
[1722051618069,0.52603865,68012.0,68011.0,0.155824]
[1722051618521,0.52703865,68012.0,68011.0,0.164824]
[1722051619912,0.67407065,68012.0,68011.0,0.164824]
[1722051620176,0.96813565,68012.0,68011.0,0.164824]
[1722051620822,0.67407065,68012.0,68011.0,0.164824]
[1722051622131,0.67407065,68012.0,68011.0,0.458894]
[1722051624118,0.52703865,68012.0,68011.0,0.458894]
[1722051625168,0.67407065,68012.0,68011.0,0.458894]
[1722051625573,0.52703865,68012.0,68011.0,0.458894]
[1722051626051,0.52603865,68012.0,68011.0,0.449894]
[1722051626342,0.52703865,68012.0,68011.0,0.458894]
[1722051626916,0.52603865,68012.0,68011.0,0.446894]
[1722051627125,0.52603865,68012.0,68011.0,0.458894]
[1722051628246,0.67307065,68012.0,68011.0,0.458894]
[1722051629042,1.03911141,68012.0,68011.0,0.458894]
[1722051629237,1.69417903,68012.0,68011.0,0.315994]
[1722051629618,1.69417903,68012.0,68003.0,7.377e-05]
[1722051629619,0.74315,68004.0,68003.0,7.377e-05]
[1722051629806,1.47442323,68004.0,68003.0,7.377e-05]
[1722051629953,1.81222341,68004.0,68003.0,0.29417377]
[1722051630161,1.81852323,68004.0,68003.0,0.29417377]
[1722051630365,2.11224305,68004.0,68003.0,0.29417377]
[1722051630566,2.4810343,68004.0,68003.0,0.29417377]
[1722051630767,2.39363393,68004.0,68003.0,0.29417377]
[1722051631138,2.37367347,68004.0,68003.0,0.29417377]
[1722051631250,2.40991701,68004.0,68003.0,0.29417377]
[1722051631453,2.56491298,68004.0,68003.0,0.30417377]
[1722051631673,2.45564439,68004.0,68003.0,0.30417377]
[1722051631867,2.45664439,68004.0,68003.0,0.31317377]
[1722051632286,2.45564439,68004.0,68003.0,0.30417377]
[1722051632464,2.45564439,68004.0,68003.0,0.29417377]
[1722051632778,2.45564439,68004.0,68003.0,0.29817377]
[1722051633926,2.45564439,68004.0,68003.0,0.30317377]
[1722051634723,2.45629408,68004.0,68003.0,0.30317377]
[1722051634926,1.97389408,68004.0,68003.0,0.30317377]
[1722051635104,2.0831929,68004.0,68003.0,0.30317377]
[1722051635305,1.97389408,68004.0,68003.0,0.30317377]
[1722051635511,2.06134668,68004.0,68003.0,0.30317377]
[1722051635936,1.97389408,68004.0,68003.0,0.30317377]
[1722051636232,2.0613498,68004.0,68003.0,0.30317377]
[1722051636613,1.97389408,68004.0,68003.0,0.30317377]
[1722051637441,2.093251,68004.0,68003.0,0.30317377]
[1722051637783,1.98395218,68004.0,68003.0,0.30317377]
[1722051637989,1.93757511,68004.0,68003.0,0.30317377]
[1722051638163,1.98390644,68004.0,68003.0,0.30317377]
[1722051638464,1.79280644,68004.0,68003.0,0.30317377]
[1722051639068,1.7697285,68004.0,68003.0,0.30317377]
[1722051641406,1.72339717,68004.0,68003.0,0.30317377]
[1722051641581,1.76975159,68004.0,68003.0,0.30317377]
[1722051644707,1.81975159,68004.0,68003.0,0.30317377]
[1722051644914,1.81978414,68004.0,68003.0,0.30317377]
[1722051645289,2.01088414,68004.0,68003.0,0.30317377]
[1722051645483,2.16114371,68004.0,68003.0,0.30317377]
[1722051646469,2.84654371,68004.0,68003.0,0.30317377]
[1722051646646,2.86954371,68004.0,68003.0,0.30317377]
[1722051647620,2.71928414,68004.0,68003.0,0.30317377]
[1722051648219,2.71933204,68004.0,68003.0,0.30317377]
[1722051648644,2.67289717,68004.0,68003.0,0.30317377]
[1722051648847,2.74241099,68004.0,68003.0,0.30317377]
[1722051649057,2.71933204,68004.0,68003.0,0.30317377]
[1722051651143,2.52823204,68004.0,68003.0,0.30317377]
[1722051651307,2.60463204,68004.0,68003.0,0.30317377]
[1722051651690,2.6046179,68004.0,68003.0,0.30317377]
[1722051651887,2.62769685,68004.0,68003.0,0.30317377]
[1722051652101,2.6046179,68004.0,68003.0,0.30317377]
[1722051655243,2.6044797,68004.0,68003.0,0.30317377]
[1722051655444,2.62755865,68004.0,68003.0,0.30317377]
[1722051655847,2.6044797,68004.0,68003.0,0.30317377]
[1722051656433,2.68349887,68004.0,68003.0,0.30317377]
[1722051656659,2.78349887,68004.0,68003.0,0.30317377]
[1722051658389,2.73721634,68004.0,68003.0,0.30317377]
[1722051658526,2.86386058,68004.0,68003.0,0.30317377]
[1722051659152,2.88693957,68004.0,68003.0,0.30317377]
[1722051660485,1.925508,68001.0,68000.0,0.13420894]
[1722051660706,1.925508,68001.0,67987.0,0.009108]
[1722051660707,0.743253,67988.0,67987.0,0.009108]
[1722051660887,1.83633992,67988.0,67987.0,0.009108]
[1722051661104,2.4083438,67988.0,67987.0,0.009108]
[1722051661306,2.4673078,67988.0,67987.0,0.009108]
[1722051661516,2.36704823,67988.0,67987.0,0.009108]
[1722051661727,2.56704823,67988.0,67987.0,0.009108]
[1722051661891,2.69004823,67988.0,67987.0,0.009108]
[1722051662077,2.76992684,67988.0,67987.0,0.009108]
[1722051662461,2.9028312,67988.0,67987.0,0.009108]
[1722051662666,2.9028312,67988.0,67980.0,0.000924]
[1722051662667,1.381696,67981.0,67980.0,0.000924]
[1722051662873,2.28001923,67981.0,67980.0,0.000924]
[1722051663520,1.85942023,67981.0,67980.0,0.000924]
[1722051663731,1.95890699,67981.0,67980.0,0.000924]
[1722051663944,1.93582023,67981.0,67980.0,0.000924]
[1722051664312,1.93562745,67981.0,67980.0,0.000924]
[1722051665116,2.05042745,67981.0,67980.0,0.000924]
[1722051665312,2.05442745,67981.0,67980.0,0.000924]
[1722051665817,1.76022845,67981.0,67980.0,0.064024]
[1722051666062,1.76022845,67981.0,67980.0,0.141524]
[1722051667185,1.78331409,67981.0,67980.0,0.141524]
[1722051667390,1.78348997,67981.0,67980.0,0.141524]
[1722051667630,1.76040433,67981.0,67980.0,0.141524]
[1722051668547,1.86340333,67981.0,67980.0,0.141524]
[1722051668748,1.57947878,67981.0,67980.0,0.141524]
[1722051668950,1.9884535,67981.0,67980.0,0.000924]
[1722051669462,1.6942545,67981.0,67980.0,0.000924]
[1722051670534,1.57947878,67981.0,67980.0,0.065324]
[1722051670747,1.24901513,67981.0,67980.0,0.147924]
[1722051670947,1.22712587,67981.0,67980.0,0.147924]
[1722051671075,1.13956152,67981.0,67980.0,0.147924]
[1722051671273,1.22712587,67981.0,67980.0,0.147924]
[1722051671501,1.52132487,67981.0,67980.0,0.147924]
[1722051671713,1.51832487,67981.0,67980.0,0.147924]
[1722051671888,1.51732487,67981.0,67980.0,0.147924]
[1722051672110,1.53921396,67981.0,67980.0,0.147924]
[1722051672307,1.45384555,67981.0,67980.0,0.147924]
[1722051672509,1.43076052,67981.0,67980.0,0.147924]
[1722051672753,1.43176052,67981.0,67980.0,0.147924]
[1722051672956,1.43176052,67981.0,67980.0,0.153924]
[1722051672957,1.479028,67981.0,67980.0,0.153924]
[1722051673135,1.47902791,67981.0,67980.0,0.153924]
[1722051673897,1.47702791,67981.0,67980.0,0.153924]
[1722051674286,1.47709975,67981.0,67980.0,0.158924]
[1722051675395,1.50018509,67981.0,67980.0,0.158924]
[1722051675597,1.45384586,67981.0,67980.0,0.158924]
[1722051675797,1.60410543,67981.0,67980.0,0.076324]
[1722051675939,1.65035788,67981.0,67980.0,0.076324]
[1722051676140,1.6734395,67981.0,67980.0,0.076324]
[1722051676364,1.65035416,67981.0,67980.0,0.076324]
[1722051677076,1.60410171,67981.0,67980.0,0.076324]
[1722051677490,1.65048985,67981.0,67980.0,0.076324]
[1722051678690,1.45384214,67981.0,67980.0,0.076324]
[1722051679685,1.47692763,67981.0,67980.0,0.076324]
[1722051681010,1.5231662,67981.0,67980.0,0.076324]
[1722051684008,1.47692763,67981.0,67980.0,0.076324]
[1722051684483,1.52321373,67981.0,67980.0,0.076324]
[1722051685159,0.78771673,67981.0,67980.0,0.152524]
[1722051685394,1.18272863,67981.0,67980.0,0.152524]
[1722051685596,1.2922384,67981.0,67980.0,0.152524]
[1722051685751,1.26915291,67981.0,67980.0,0.152524]
[1722051685952,1.15964314,67981.0,67980.0,0.152524]
[1722051686998,1.2691963,67981.0,67980.0,0.152524]
[1722051687155,1.15964314,67981.0,67980.0,0.152524]
[1722051688176,1.26920803,67981.0,67980.0,0.152524]
[1722051688535,1.15964314,67981.0,67980.0,0.152524]
[1722051688940,1.22937896,67981.0,67980.0,0.152524]
[1722051689163,1.29229959,67981.0,67980.0,0.152524]
[1722051689367,1.33894787,67981.0,67980.0,0.152524]
[1722051689643,1.22937546,67981.0,67980.0,0.152524]
[1722051690438,0.91347974,67981.0,67980.0,0.152524]
[1722051690569,1.04421863,67981.0,67980.0,0.152524]
[1722051691179,1.04422842,67981.0,67980.0,0.152524]
[1722051692498,1.02114438,67981.0,67980.0,0.152524]
[1722051693939,1.31534338,67981.0,67980.0,0.152524]
[1722051694197,1.31534338,67981.0,67980.0,0.076324]
[1722051694198,1.39174338,67981.0,67980.0,0.076324]
[1722051694367,1.68594238,67981.0,67980.0,0.011924]
[1722051694569,1.63928431,67981.0,67980.0,0.011924]
[1722051694866,1.81750292,67981.0,67980.0,0.011924]
[1722051695831,1.74110292,67981.0,67980.0,0.011924]
[1722051696146,1.81750292,67981.0,67980.0,0.011924]
[1722051696700,1.76299048,67981.0,67980.0,0.011924]
[1722051697049,1.78607559,67981.0,67980.0,0.011924]
[1722051697366,2.23027459,67981.0,67980.0,0.011924]
[1722051697930,2.37835358,67981.0,67980.0,0.011924]
[1722051698283,2.23030456,67981.0,67980.0,0.011924]
[1722051698490,2.38056413,67981.0,67980.0,0.011924]
[1722051698870,2.23030456,67981.0,67980.0,0.011924]
[1722051699355,2.48030456,67981.0,67980.0,0.011924]
[1722051699556,2.50330456,67981.0,67980.0,0.011924]
[1722051701527,2.25330456,67981.0,67980.0,0.011924]
[1722051701695,1.73270556,67981.0,67980.0,0.011924]
[1722051701896,1.80910556,67981.0,67980.0,0.011924]
[1722051702049,1.9572598,67981.0,67980.0,0.011924]
[1722051702452,1.78602045,67981.0,67980.0,0.011924]
[1722051703150,1.70962045,67981.0,67980.0,0.011924]
[1722051704588,1.71008126,67981.0,67980.0,0.011924]
[1722051707049,1.86034083,67981.0,67980.0,0.011924]
[1722051707199,1.73316698,67981.0,67980.0,0.011924]
[1722051708129,1.73299119,67981.0,67980.0,0.011924]
[1722051709038,1.73302643,67981.0,67980.0,0.011924]
[1722051711544,1.73295535,67981.0,67980.0,0.011924]
[1722051711779,1.43875635,67981.0,67980.0,0.011924]
[1722051711959,1.58702111,67981.0,67980.0,0.011924]
[1722051712378,1.5870188,67981.0,67980.0,0.011924]
[1722051712643,1.46393308,67981.0,67980.0,0.011924]
[1722051715204,1.46379546,67981.0,67980.0,0.011924]
[1722051716568,1.46379777,67981.0,67980.0,0.011924]
[1722051717252,1.75799677,67981.0,67980.0,0.011924]
[1722051718565,1.75788595,67981.0,67980.0,0.011924]
[1722051719006,1.7578273,67981.0,67980.0,0.011924]
[1722051719944,1.60945821,67981.0,67980.0,0.011924]
[1722051720193,1.78073025,67981.0,67980.0,0.011924]
[1722051720672,1.75764511,67981.0,67980.0,0.011924]
[1722051721140,1.60950649,67981.0,67980.0,0.011924]
[1722051721370,1.75769123,67981.0,67980.0,0.011924]
[1722051723148,1.83419123,67981.0,67980.0,0.011924]
[1722051723952,1.85727637,67981.0,67980.0,0.011924]
[1722051724111,1.83419123,67981.0,67980.0,0.011924]
[1722051724307,1.83389584,67981.0,67980.0,0.011924]
[1722051725585,2.20723846,67981.0,67980.0,0.011924]
[1722051725748,2.12886389,67981.0,67980.0,0.011924]
[1722051726362,2.13142742,67981.0,67980.0,0.011924]
[1722051726994,2.15451311,67981.0,67980.0,0.011924]
[1722051727781,2.15425463,67981.0,67980.0,0.011924]
[1722051729748,2.60425463,67981.0,67980.0,0.011924]
[1722051729894,2.72725463,67981.0,67980.0,0.011924]
[1722051731174,2.72708926,67981.0,67980.0,0.011924]
[1722051731731,2.36638926,67981.0,67980.0,0.011924]
[1722051731926,2.33724564,67981.0,67980.0,0.011924]
[1722051732129,2.43724564,67981.0,67980.0,0.011924]
[1722051732324,2.63724564,67981.0,67980.0,0.011924]
[1722051733296,2.61415995,67981.0,67980.0,0.011924]
[1722051733610,2.64681836,67981.0,67980.0,0.011924]
[1722051734493,2.64682411,67981.0,67980.0,0.011924]
[1722051737797,2.6009119,67981.0,67980.0,0.011924]
[1722051737971,2.67003142,67981.0,67980.0,0.011924]
[1722051738372,2.73463142,67981.0,67980.0,0.011924]
[1722051739321,2.70197301,67981.0,67980.0,0.011924]
[1722051740255,2.99617201,67981.0,67980.0,0.011924]
[1722051740457,1.598533,67972.0,67971.0,0.002]
[1722051740632,2.02530478,67972.0,67971.0,0.002]
[1722051740831,2.39949959,67972.0,67971.0,0.002]
[1722051741042,2.27350989,67972.0,67971.0,0.002]
[1722051741259,2.19569852,67972.0,67971.0,0.002]
[1722051741479,2.11574023,67972.0,67971.0,0.002]
[1722051741675,2.64328886,67972.0,67971.0,0.002]
[1722051742105,2.56888191,67972.0,67971.0,0.002]
[1722051742305,2.56888191,67972.0,67971.0,0.005]
[1722051742512,2.56888191,67972.0,67971.0,0.006]
[1722051742710,2.86311991,67972.0,67971.0,0.006]
[1722051743434,2.86311991,67972.0,67960.0,0.009108]
[1722051743435,0.8,67966.0,67960.0,0.009108]
[1722051743654,1.65989011,67966.0,67960.0,0.009108]
[1722051743862,2.34841811,67966.0,67960.0,0.009108]
[1722051744023,2.64268211,67966.0,67960.0,0.009108]
[1722051744216,2.59662689,67966.0,67960.0,0.009108]
[1722051744423,2.64267901,67966.0,67960.0,0.009108]
[1722051744818,2.12697901,67966.0,67962.0,0.0609]
[1722051745022,1.69321501,67966.0,67962.0,0.0609]
[1722051745489,1.84020193,67966.0,67962.0,0.0609]
[1722051745736,1.84920193,67966.0,67962.0,0.0609]
[1722051746366,1.70121501,67966.0,67962.0,0.0609]
[1722051747691,1.70136347,67966.0,67962.0,0.0609]
[1722051749237,1.69236347,67966.0,67962.0,0.0609]
[1722051749436,1.68536347,67966.0,67962.0,0.0609]
[1722051749667,1.68736347,67966.0,67962.0,0.0609]
[1722051750459,1.69036347,67966.0,67962.0,0.0609]
[1722051750702,1.63758704,67966.0,67962.0,0.0609]
[1722051751121,1.22062246,67966.0,67962.0,0.0609]
[1722051751329,1.34341401,67966.0,67962.0,0.0609]
[1722051751535,1.47487249,67966.0,67962.0,0.0609]
[1722051751951,1.39837249,67966.0,67960.0,0.009108]
[1722051752173,1.47187249,67966.0,67965.0,0.149208]
[1722051752378,1.63467801,67966.0,67965.0,0.149208]
[1722051752585,1.63267801,67966.0,67965.0,0.149208]
[1722051753612,1.76714514,67966.0,67965.0,0.149208]
[1722051753831,1.82613014,67966.0,67965.0,0.149208]
[1722051755596,1.45536614,67966.0,67965.0,0.149208]
[1722051755798,1.53186614,67966.0,67965.0,0.149208]
[1722051757828,1.53221075,67966.0,67965.0,0.149208]
[1722051758841,1.45571075,67966.0,67965.0,0.149208]
[1722051761275,1.32429646,67966.0,67965.0,0.149208]
[1722051761468,1.45577211,67966.0,67965.0,0.149208]
[1722051762106,1.45577192,67966.0,67965.0,0.149208]
[1722051762673,0.62011192,67966.0,67965.0,0.149208]
[1722051763018,0.6588592,67966.0,67965.0,0.149208]
[1722051763232,0.48863646,67966.0,67965.0,0.149208]
[1722051763401,0.38096246,67966.0,67965.0,0.149208]
[1722051763804,0.46863663,67966.0,67965.0,0.149208]
[1722051763964,0.44671864,67966.0,67965.0,0.149208]
[1722051764217,0.44471864,67966.0,67965.0,0.149208]
[1722051764636,0.32996246,67966.0,67965.0,0.149208]
[1722051765064,0.39471975,67966.0,67965.0,0.149208]
[1722051765305,0.39371975,67966.0,67965.0,0.149208]
[1722051765459,0.39471975,67966.0,67965.0,0.149208]
[1722051766076,0.41780815,67966.0,67965.0,0.149208]
[1722051766277,0.41880815,67966.0,67965.0,0.149208]
[1722051766476,0.38196246,67966.0,67965.0,0.149208]
[1722051767004,0.44772764,67966.0,67965.0,0.149208]
[1722051767331,0.38196246,67966.0,67965.0,0.149208]
[1722051768054,0.44772838,67966.0,67965.0,0.149208]
[1722051768748,0.37996246,67966.0,67965.0,0.149208]
[1722051769739,0.40305119,67966.0,67965.0,0.149208]
[1722051769941,0.40305119,67966.0,67965.0,0.225708]
[1722051769942,0.19690119,67966.0,67965.0,0.225708]
[1722051770166,0.37381246,67966.0,67965.0,0.225708]
[1722051770365,0.29585,67966.0,67965.0,0.225708]
[1722051771165,0.34585,67966.0,67965.0,0.225708]
[1722051771334,0.29585,67966.0,67965.0,0.225708]
[1722051771542,0.34585,67966.0,67965.0,0.225708]
[1722051773519,0.36893827,67966.0,67965.0,0.225708]
[1722051773923,0.31893827,67966.0,67965.0,0.149208]
[1722051774137,0.37093827,67966.0,67965.0,0.443478]
[1722051774561,0.34785,67966.0,67965.0,0.443478]
[1722051774963,0.3478504,67966.0,67965.0,0.443478]
[1722051777825,0.37093834,67966.0,67965.0,0.443478]
[1722051778240,0.32708794,67966.0,67965.0,0.443478]
[1722051778630,0.304,67966.0,67965.0,0.443478]
[1722051780129,0.38339241,67966.0,67965.0,0.443478]
[1722051780800,0.59629232,67966.0,67965.0,0.443478]
[1722051781006,0.82478841,67966.0,67965.0,0.443478]
[1722051781184,0.82478841,67966.0,67965.0,0.364278]
[1722051781426,0.61821496,67966.0,67965.0,0.364278]
[1722051781631,0.47108296,67966.0,67965.0,0.364278]
[1722051781780,0.61821496,67966.0,67965.0,0.364278]
[1722051781957,0.64130419,67966.0,67965.0,0.364278]
[1722051782552,0.61821496,67966.0,67965.0,0.364278]
[1722051783359,0.47108296,67966.0,67965.0,0.364278]
[1722051784144,0.38339241,67966.0,67965.0,0.364278]
[1722051784273,0.471072,67966.0,67965.0,0.364278]
[1722051785021,0.618204,67966.0,67965.0,0.364278]
[1722051787292,0.64129323,67966.0,67965.0,0.364278]
[1722051787499,0.618204,67966.0,67965.0,0.364278]
[1722051787715,0.61820573,67966.0,67965.0,0.364278]
[1722051790493,0.38339241,67966.0,67965.0,0.364278]